[Event "TUR-ch Veterans 2019"]
[Site "Belek"]
[Date "2019.01.21"]
[Round "2.8"]
[White "Oymanli, Veli"]
[Black "Aysoy, Veysi"]
[Result "0-1"]
[ECO "D02"]
[WhiteElo "1398"]
[BlackElo "1933"]
[Annotator "NA"]
[PlyCount "116"]
[EventDate "2019.01.20"]
[EventType "swiss"]
[EventCountry "TUR"]
[SourceTitle "playchess.com"]
[Source "ChessBase"]
[SourceQuality "1"]
[TimeControl "5400+30"]

1. d4 {[%emt 0:05:30]} Nf6 {[%emt 0:05:30]} 2. Bf4 {[%emt 0:00:30]} d5 {[%emt 0:00:30]} 3. e3 {[%emt 0:00:30]} c5 {[%emt 0:00:30]} 4. c3 {[%emt 0:00:30]} Nc6 {[%emt 0:00:30]} 5. Nf3 {[%emt 0:00:30]} Qb6 {[%emt 0:00:30]} 6. Qb3 {[%emt 0:00:30]} c4 {[%emt 0:00:30]} 7. Qxb6 {[%emt 0:00:30]} axb6 {[%emt 0:00:30]} 8. Nbd2 {[%emt 0:00:30]} b5 {[%emt 0:00:30]} 9. Ne5 {[%emt 0:00:30] D02: 1 d4 d5 2 Nf3 sidelines, including 2...Nf6 3 g3 and 2...Nf6 3 Bf4} (9. Be2 e6 10. O-O b4 11. Bg5 b5 12. Bxf6 gxf6 13. cxb4 Bxb4 14. a3 Bxd2 15. Nxd2 Ke7 16. Rfc1 Bd7 17. b3 {0-1 (31) Mehmeti,D (2428)-Pelletier,Y (2540) Heraklio 2017}) 9... Bf5 {[%emt 0:00:30]} 10. Be2 {[%emt 0:00:30]} h6 {[%emt 0:00:30]} 11. O-O {[%emt 0:00:30]} e6 {[%emt 0:00:30]} 12. h3 {[%emt 0:00:30]} Be7 {[%emt 0:00:30]} 13. g4 $146 {[%emt 0:00:30]} ({Predecessor:} 13. a3 Nxe5 14. dxe5 Nd7 {½-½ (33) Krastev,A (2105)-Lutz,R (1878) Willingen 2017}) 13... Bh7 {[%emt 0:03:30]} 14. a3 {[%emt 0:06:30]} Nd7 {[%emt 0:06:30]} 15. Nxd7 {[%emt 0:05:30]} Kxd7 {[%emt 0:00:30]} 16. Nf3 {[%emt 0:03:30]} f6 {[%emt 0:01:30]} 17. Nd2 {[%emt 0:00:30]} Bd6 {[%emt 0:08:30]} 18. Bxd6 {[%emt 0:03:30]} Kxd6 {[%emt 0:00:30]} 19. Bf3 {[%emt 0:01:30]} Bd3 {[%emt 0:02:30]} 20. Rfe1 {[%emt 0:01:30]} f5 {[%emt 0:02:30]} 21. Be2 {[%emt 0:04:30]} Bxe2 {[%emt 0:02:30]} 22. Rxe2 {[%emt 0:00:00]} b4 {[%emt 0:03:30]} 23. f3 {[%emt 0:01:00]} (23. gxf5 $15 exf5 24. Nf3) 23... b5 {[%emt 0:04:30]} 24. e4 $2 {[%emt 0:02:30]} (24. cxb4 $17 {was worth a try.} fxg4 25. fxg4) 24... dxe4 {[%emt 0:02:30]} 25. fxe4 {[%emt 0:01:30]} fxg4 {[%emt 0:04:30]} 26. hxg4 {[%emt 0:00:30]} bxa3 {[%emt 0:01:30]} 27. bxa3 {[%emt 0:01:30]} Ra5 {[%emt 0:01:30] [#]} 28. Nf1 {[%emt 0:02:30]} (28. a4 $1 $11 {[%mdl 512]}) 28... Rha8 {[%emt 0:01:30]} 29. e5+ {[%emt 0:04:30]} Kd7 {[%emt 0:08:30]} 30. Rb1 {[%emt 0:23:30]} Na7 {[%emt 0:05:30]} 31. d5 {[%emt 0:01:30]} Rxa3 {[%emt 0:12:30]} 32. Rd1 {[%emt 0:01:30]} Nc8 {[%emt 0:04:37]} 33. Rf2 {[%emt 0:07:30]} exd5 {[%emt 0:02:18]} 34. Rxd5+ {[%emt 0:00:31]} Kc6 {[%emt 0:00:22]} 35. Rd8 {[%emt 0:00:46]} Rxc3 {[%emt 0:07:19]} 36. e6 {[%emt 0:00:51]} Rca3 {[%emt 0:03:57]} 37. Rff8 {[%emt 0:00:36]} R3a7 {[%emt 0:01:18]} 38. Rxc8+ {[%emt 0:04:55]} Rxc8 {[%emt 0:00:53]} 39. Rxc8+ {[%emt 0:00:01]} Kd6 {[%emt 0:00:19]} 40. Rb8 {[%emt 0:00:26]} Kxe6 {[%emt 0:02:24]} 41. Rxb5 {[%emt 0:00:04]} Rc7 {[%emt 0:00:59]} 42. Ne3 {[%emt 0:00:08]} c3 {[%emt 0:00:24]} 43. Nc2 {[%emt 0:00:01]} Rd7 {[%emt 0:00:10]} 44. Rb1 {[%emt 0:00:52]} Rd3 {[%emt 0:00:21]} 45. Re1+ {[%emt 0:01:18]} Kd6 {[%emt 0:01:19]} 46. Re2 {[%emt 0:00:02]} Kc5 {[%emt 0:00:10]} 47. Kf1 {[%emt 0:00:04]} Kc4 {[%emt 0:00:21]} 48. Kf2 {[%emt 0:00:35]} g6 {[%emt 0:00:53]} 49. Ne1 {[%emt 0:00:07]} Rd2 {[%emt 0:00:00]} 50. Nc2 {[%emt 0:01:48] [#]} Kb3 $11 {[%emt 0:00:07]} (50... Rxc2 $1 $19 {[%mdl 512]} 51. Rxc2 Kb3) 51. Ne3 {[%emt 0:00:21]} c2 {[%emt 0:01:08]} 52. Nxc2 {[%emt 0:00:26]} Kxc2 {[%emt 0:00:21]} 53. Rxd2+ {[%emt 0:01:51]} Kxd2 {[%emt 0:00:30]} 54. Kf3 {[%emt 0:00:00]} Kd3 {[%emt 0:00:38]} 55. Kf4 {[%emt 0:00:00]} Kd4 {[%emt 0:00:08]} 56. Kf3 {[%emt 0:00:00]} g5 {[%emt 0:00:14]} 57. Kf2 {[%emt 0:00:37]} Ke4 {[%emt 0:00:39]} 58. Kg3 {[%emt 0:00:01]} Ke3 {[%emt 0:00:00]} 0-1

[Event "TUR-ch Veterans 2019"]
[Site "Belek"]
[Date "2019.01.21"]
[Round "2.9"]
[White "Sezgun, Yakup"]
[Black "Subasi, Zeki"]
[Result "1/2-1/2"]
[ECO "A39"]
[WhiteElo "1757"]
[BlackElo "1707"]
[Annotator "NA"]
[PlyCount "98"]
[EventDate "2019.01.20"]
[EventType "swiss"]
[EventCountry "TUR"]
[SourceTitle "playchess.com"]
[Source "ChessBase"]
[SourceQuality "1"]
[TimeControl "5400+30"]

1. Nf3 {[%emt 0:04:30]} Nf6 {[%emt 0:04:30]} 2. g3 {[%emt 0:00:30]} g6 {[%emt 0:00:30]} 3. Bg2 {[%emt 0:00:30]} Bg7 {[%emt 0:00:30]} 4. O-O {[%emt 0:00:30]} O-O {[%emt 0:00:30]} 5. c4 {[%emt 0:00:30]} c5 {[%emt 0:00:30]} 6. Nc3 {[%emt 0:00:30]} Nc6 {[%emt 0:00:30]} 7. d4 {[%emt 0:00:30]} cxd4 {[%emt 0:00:30]} 8. Nxd4 {[%emt 0:00:30]} a6 {[%emt 0:00:30]} 9. e3 {[%emt 0:00:30]} Qc7 {[%emt 0:00:30]} 10. b3 {[%emt 0:00:30]} Nxd4 {[%emt 0:00:30]} 11. exd4 {[%emt 0:00:30]} d6 {[%emt 0:00:30]} 12. Bb2 {[%emt 0:00:30]} Re8 {[%emt 0:00:30]} 13. Rc1 {[%emt 0:00:30]} Bh6 {[%emt 0:01:30]} 14. Ra1 {[%emt 0:05:30]} Bg4 {[%emt 0:00:30]} 15. Qc2 {[%emt 0:02:30]} Bf5 {[%emt 0:01:30]} 16. Ne4 {[%emt 0:09:30]} Kf8 {[%emt 0:04:30]} 17. Qe2 {[%emt 0:05:30]} Nxe4 {[%emt 0:04:30]} 18. Bxe4 {[%emt 0:00:30]} Bxe4 {[%emt 0:03:30]} 19. Qxe4 {[%emt 0:00:30]} Bg7 {[%emt 0:00:00]} 20. Rfe1 {[%emt 0:01:30]} Rac8 {[%emt 0:01:00]} 21. Re2 {[%emt 0:05:30]} Kg8 {[%emt 0:03:30]} 22. Rae1 {[%emt 0:00:30]} Bf6 {[%emt 0:01:30]} 23. Qb1 {[%emt 0:04:30]} e6 {[%emt 0:05:30]} 24. d5 {[%emt 0:05:30]} Bxb2 {[%emt 0:00:30]} 25. Qxb2 {[%emt 0:00:30]} e5 {[%emt 0:02:30]} 26. f4 {[%emt 0:06:30]} f6 {[%emt 0:00:00]} 27. fxe5 {[%emt 0:00:30]} fxe5 {[%emt 0:00:00]} 28. Rf1 {[%emt 0:00:30]} Rf8 {[%emt 0:00:30]} 29. Ref2 {[%emt 0:00:00]} Qe7 {[%emt 0:01:30]} 30. Qe2 {[%emt 0:05:00]} Rxf2 {[%emt 0:00:30]} 31. Rxf2 {[%emt 0:05:30]} Rf8 {[%emt 0:00:30]} 32. Qg4 {[%emt 0:01:30]} Rxf2 {[%emt 0:01:30]} 33. Kxf2 {[%emt 0:00:00]} Kg7 {[%emt 0:00:30]} 34. Ke2 {[%emt 0:01:00]} h5 {[%emt 0:04:30]} 35. Qc8 {[%emt 0:01:30]} Kf6 {[%emt 0:03:30]} 36. b4 {[%emt 0:02:30]} e4 {[%emt 0:01:30]} 37. c5 {[%emt 0:06:30]} Qf7 {[%emt 0:03:30]} 38. cxd6 {[%emt 0:08:58]} Qxd5 {[%emt 0:00:30]} 39. d7 {[%emt 0:03:36]} Qd3+ {[%emt 0:01:30]} 40. Ke1 {[%emt 0:00:22]} Qb1+ {[%emt 0:03:30]} 41. Kf2 {[%emt 0:05:22]} Qxa2+ {[%emt 0:02:30]} 42. Ke3 {[%emt 0:02:37]} Qb3+ {[%emt 0:00:30]} 43. Kxe4 {[%emt 0:02:34]} Qxb4+ {[%emt 0:00:30]} 44. Kd3 {[%emt 0:00:56]} Qb3+ {[%emt 0:00:30]} 45. Ke2 {[%emt 0:00:27]} Qb2+ {[%emt 0:01:30]} 46. Kf1 {[%emt 0:00:33]} Qb1+ {[%emt 0:00:00]} 47. Kg2 {[%emt 0:00:20]} Qa2+ {[%emt 0:00:00]} 48. Kh3 {[%emt 0:00:57]} Qe6+ {[%emt 0:00:30]} 49. Kg2 {[%emt 0:00:40]} Qa2+ {[%emt 0:00:30]} 1/2-1/2

[Event "TUR-ch Veterans 2019"]
[Site "Belek"]
[Date "2019.01.21"]
[Round "2.11"]
[White "Uzuner, Tufan Can"]
[Black "Alnajih, Mustafa A."]
[Result "1-0"]
[ECO "D05"]
[WhiteElo "1889"]
[BlackElo "1842"]
[Annotator "NA"]
[PlyCount "65"]
[EventDate "2019.01.20"]
[EventType "swiss"]
[EventCountry "TUR"]
[SourceTitle "playchess.com"]
[Source "ChessBase"]
[SourceQuality "1"]
[TimeControl "5400+30"]

1. Nf3 {[%emt 0:08:30]} Nf6 {[%emt 0:11:30]} 2. d4 {[%emt 0:00:30]} d5 {[%emt 0:00:30]} 3. e3 {[%emt 0:00:30]} e6 {[%emt 0:00:30]} 4. Bd3 {[%emt 0:00:30]} Nc6 {[%emt 0:00:30]} 5. O-O {[%emt 0:00:30] D05: Colle System with ...e6} Bd7 {[%emt 0:00:30]} (5... Bd6 6. c4 dxc4 7. Bxc4 O-O 8. Nc3 Nd5 9. Ne4 Be7 10. Bd2 h6 11. Rc1 Nb6 12. Bb5 Nb4 {1-0 (35) Sanjur,C (1888)-Balana Romero,R (1900) ICCF email 2016}) 6. Nbd2 {[%emt 0:00:30]} g6 $146 {[%emt 0:00:30]} ({Predecessor:} 6... Bd6 7. e4 dxe4 8. Nxe4 Nxe4 9. Bxe4 O-O 10. Bxh7+ Kxh7 11. Ng5+ Kg6 12. f4 Ne7 13. Qg4 e5 14. Ne6+ {1-0 (14) Fleischer,M (1768)-Hopp,B (1518) Bad Sooden 2011}) 7. c4 {[%emt 0:00:30]} Bg7 {[%emt 0:00:30]} 8. b3 {[%emt 0:00:30]} O-O {[%emt 0:00:30]} 9. Bb2 {[%emt 0:00:30]} Rc8 {[%emt 0:00:30]} 10. Rc1 {[%emt 0:00:30]} Re8 {[%emt 0:00:30]} 11. Ne5 {[%emt 0:04:30]} Ne7 {[%emt 0:06:30]} 12. Qe2 {[%emt 0:09:30]} Bc6 {[%emt 0:03:30]} 13. Nxc6 {[%emt 0:02:30]} Nxc6 {[%emt 0:00:30]} 14. cxd5 {[%emt 0:11:30]} Nxd5 {[%emt 0:05:30]} 15. Bb5 {[%emt 0:04:30]} Nde7 {[%emt 0:00:30]} 16. Ba3 {[%emt 0:01:30]} e5 {[%emt 0:09:30]} 17. dxe5 {[%emt 0:03:00]} Bxe5 {[%emt 0:01:30]} 18. Rfd1 {[%emt 0:07:30]} Bd6 {[%emt 0:05:30]} 19. Ne4 {[%emt 0:01:30]} Nf5 {[%emt 0:01:30]} 20. Nxd6 {[%emt 0:04:30]} cxd6 {[%emt 0:00:30]} 21. Qd2 {[%emt 0:08:30]} Re5 {[%emt 0:09:30]} 22. Bxc6 {[%emt 0:04:30]} bxc6 {[%emt 0:01:30]} 23. Bb2 $16 {[%emt 0:00:00]} Rd5 {[%emt 0:01:30]} 24. Qc3 {[%emt 0:00:00]} Rxd1+ {[%emt 0:02:30]} 25. Rxd1 {[%emt 0:00:30]} f6 {[%emt 0:00:30]} 26. e4 {[%emt 0:02:30]} Ng7 {[%emt 0:03:30]} 27. Qxf6 {[%emt 0:01:30]} Qxf6 {[%emt 0:00:30]} 28. Bxf6 {[%emt 0:00:00]} Ne6 {[%emt 0:02:30]} 29. Rxd6 {[%emt 0:01:00]} Kf7 {[%emt 0:00:30]} 30. e5 {[%emt 0:02:30]} Rc7 {[%emt 0:02:30]} 31. f3 {[%emt 0:01:30]} Nc5 {[%emt 0:03:30]} 32. Kf2 {[%emt 0:00:30]} Rd7 {[%emt 0:02:30]} 33. e6+ {[%emt 0:01:30]} 1-0

[Event "TUR-ch Veterans 2019"]
[Site "Belek"]
[Date "2019.01.21"]
[Round "2.12"]
[White "Karadag, Eflatun Cem"]
[Black "Turkmen, Musa"]
[Result "1-0"]
[ECO "E01"]
[WhiteElo "1927"]
[BlackElo "1393"]
[Annotator "NA"]
[PlyCount "65"]
[EventDate "2019.01.20"]
[EventType "swiss"]
[EventCountry "TUR"]
[SourceTitle "playchess.com"]
[Source "ChessBase"]
[SourceQuality "1"]
[TimeControl "5400+30"]

1. d4 {[%emt 0:12:30]} d5 {[%emt 0:07:30]} 2. Nf3 {[%emt 0:00:30]} Nf6 {[%emt 0:00:30]} 3. g3 {[%emt 0:00:30]} e6 {[%emt 0:00:30]} 4. Bg2 {[%emt 0:00:30]} c5 {[%emt 0:00:30]} 5. O-O {[%emt 0:00:30]} Nc6 {[%emt 0:00:30]} 6. c4 {[%emt 0:00:30]} cxd4 {[%emt 0:00:30]} 7. Nxd4 {[%emt 0:00:30]} e5 {[%emt 0:00:30] E01: Catalan: Early deviations} (7... Bc5 8. Nb3 Bb6 9. Nc3 d4 10. c5 dxc3 11. cxb6 Qxb6 12. bxc3 O-O 13. Bg5 Qc7 14. Bxf6 gxf6 15. Nd4 Ne5 16. Qb3 Bd7 17. Qxb7 Qxc3 18. Qe4 Rac8 19. Qf4 {½-½ (19) Khalifman,A (2617)-Petursson,M (2487) Puhajarve 2018}) 8. Nxc6 {[%emt 0:00:30]} bxc6 {[%emt 0:00:30]} 9. cxd5 {[%emt 0:00:30]} cxd5 {[%emt 0:00:30]} 10. Bg5 {[%emt 0:00:30]} Be6 {[%emt 0:00:30]} 11. Nc3 {[%emt 0:00:30]} e4 {[%emt 0:00:30]} 12. Qa4+ {[%emt 0:01:30]} Qd7 {[%emt 0:00:30]} 13. Qxd7+ $146 {[%emt 0:06:30]} ({Predecessor:} 13. Nb5 Rb8 14. Nc7+ Kd8 15. Nxe6+ fxe6 {1-0 (39) Garcia Dorado,A (2143)-Pascual Palomo,L (2117) Madrid 2017}) 13... Nxd7 {[%emt 0:00:30]} 14. Rfd1 {[%emt 0:01:30]} h6 {[%emt 0:08:30]} 15. Be3 {[%emt 0:01:30]} Nf6 {[%emt 0:00:30]} 16. Bd4 {[%emt 0:05:30]} Be7 {[%emt 0:05:30]} 17. Rab1 {[%emt 0:06:30]} O-O {[%emt 0:01:30]} 18. Bxf6 $1 {[%emt 0:01:30]} Bxf6 {[%emt 0:00:30]} 19. Nxd5 {[%emt 0:00:30]} Bxd5 {[%emt 0:00:30]} 20. Rxd5 {[%emt 0:00:30]} Rab8 {[%emt 0:01:30]} 21. b4 {[%emt 0:04:30]} Rfe8 {[%emt 0:01:30]} 22. e3 {[%emt 0:03:30]} g6 {[%emt 0:06:30]} 23. Rd7 {[%emt 0:02:30]} a5 {[%emt 0:03:30]} 24. b5 {[%emt 0:01:30]} Bd8 {[%emt 0:10:30]} 25. Bf1 {[%emt 0:05:30]} Re7 {[%emt 0:04:30]} 26. Rbd1 {[%emt 0:00:30]} Rxd7 {[%emt 0:00:30]} 27. Rxd7 {[%emt 0:00:30]} Rc8 {[%emt 0:04:30]} 28. g4 $18 {[%emt 0:07:30]} Bh4 {[%emt 0:12:30]} 29. b6 {[%emt 0:06:30]} Rc1 {[%emt 0:05:30]} 30. b7 {[%emt 0:04:30]} Rb1 {[%emt 0:00:30]} 31. Kg2 {[%emt 0:00:30]} Kg7 {[%emt 0:04:56]} 32. Bc4 {[%emt 0:01:30]} Kf6 {[%emt 0:02:05]} 33. Bb3 {[%emt 0:00:30]} 1-0

[Event "TUR-ch Veterans 2019"]
[Site "Belek"]
[Date "2019.01.21"]
[Round "2.13"]
[White "Yuksel, Mustafa"]
[Black "Alkan, Sukru"]
[Result "1-0"]
[ECO "D00"]
[WhiteElo "2031"]
[BlackElo "1484"]
[Annotator "NA"]
[PlyCount "111"]
[EventDate "2019.01.20"]
[EventType "swiss"]
[EventCountry "TUR"]
[SourceTitle "playchess.com"]
[Source "ChessBase"]
[SourceQuality "1"]
[TimeControl "5400+30"]

1. d4 {[%emt 0:12:30]} d5 {[%emt 0:12:30]} 2. Bf4 {[%emt 0:00:30]} Bf5 {[%emt 0:00:30]} 3. e3 {[%emt 0:00:30]} e6 {[%emt 0:00:30]} 4. c4 {[%emt 0:00:30]} c6 {[%emt 0:00:30]} 5. Nc3 {[%emt 0:00:30]} Bd6 {[%emt 0:00:30]} 6. Bxd6 {[%emt 0:00:30]} Qxd6 {[%emt 0:00:30]} 7. Qb3 {[%emt 0:00:30]} Qc7 {[%emt 0:00:30]} 8. Nf3 {[%emt 0:00:30]} Nd7 {[%emt 0:00:30]} 9. Nh4 {[%emt 0:00:30]} Bg6 {[%emt 0:00:30]} 10. cxd5 {[%emt 0:02:30]} exd5 {[%emt 0:02:30]} 11. Rc1 {[%emt 0:00:30]} Qb6 {[%emt 0:00:30]} 12. Nxg6 {[%emt 0:00:30]} hxg6 {[%emt 0:00:30]} 13. Be2 {[%emt 0:00:30]} Qxb3 {[%emt 0:00:30]} 14. axb3 {[%emt 0:00:30]} Ngf6 {[%emt 0:00:30]} 15. b4 $11 {[%emt 0:00:30]} a6 {[%emt 0:00:30]} 16. Na4 {[%emt 0:00:30]} Ke7 {[%emt 0:00:30]} 17. f3 {[%emt 0:00:30]} Nh5 {[%emt 0:00:30]} 18. Kf2 {[%emt 0:00:30]} f5 {[%emt 0:00:30]} 19. Nc5 {[%emt 0:00:30]} Nxc5 {[%emt 0:00:30]} 20. bxc5 {[%emt 0:00:30]} Nf6 {[%emt 0:00:30]} 21. b4 {[%emt 0:00:30]} g5 {[%emt 0:00:30]} 22. Ra1 {[%emt 0:00:30]} g6 {[%emt 0:00:30]} 23. Ra3 {[%emt 0:00:30]} Rae8 {[%emt 0:00:30]} 24. h3 {[%emt 0:00:30]} Kf7 {[%emt 0:00:30]} 25. Re1 {[%emt 0:00:30]} Re7 {[%emt 0:00:30]} 26. Bd3 {[%emt 0:00:30]} Rhe8 {[%emt 0:00:30]} 27. Raa1 {[%emt 0:00:30]} Re6 {[%emt 0:00:30]} 28. g4 {[%emt 0:00:30]} f4 {[%emt 0:00:30]} 29. exf4 {[%emt 0:00:30]} Rxe1 {[%emt 0:00:30]} 30. Rxe1 {[%emt 0:00:30]} Rxe1 {[%emt 0:00:30]} 31. Kxe1 {[%emt 0:00:30]} gxf4 {[%emt 0:00:30]} 32. h4 {[%emt 0:00:30]} Ng8 {[%emt 0:00:30]} 33. g5 {[%emt 0:00:30]} Ne7 {[%emt 0:00:30]} 34. Kf2 {[%emt 0:00:30]} Ke6 {[%emt 0:00:30]} 35. Bf1 {[%emt 0:00:30]} Kf7 {[%emt 0:00:30]} 36. Bh3 {[%emt 0:00:30]} Ke8 {[%emt 0:00:30]} 37. Be6 {[%emt 0:00:30]} Kd8 {[%emt 0:00:30]} 38. Kg2 {[%emt 0:00:30]} Kc7 {[%emt 0:00:30]} 39. Kh3 {[%emt 0:00:30]} b6 {[%emt 0:00:30]} 40. Kg4 {[%emt 0:00:30]} a5 {[%emt 0:00:30]} 41. cxb6+ {[%emt 0:00:30]} Kxb6 {[%emt 0:00:30]} 42. bxa5+ {[%emt 0:00:30]} Kxa5 {[%emt 0:00:30]} 43. Kxf4 {[%emt 0:00:30]} Kb4 {[%emt 0:00:30]} 44. Ke5 {[%emt 0:00:30]} c5 {[%emt 0:00:30]} 45. dxc5 {[%emt 0:00:30]} Kxc5 {[%emt 0:00:30]} 46. f4 {[%emt 0:00:30]} d4 {[%emt 0:00:30]} 47. Bg4 {[%emt 0:00:30]} d3 {[%emt 0:00:30]} 48. h5 {[%emt 0:00:30]} gxh5 {[%emt 0:00:30]} 49. Bxh5 {[%emt 0:00:30]} d2 {[%emt 0:00:30]} 50. f5 {[%emt 0:00:30]} Kc4 {[%emt 0:00:30]} 51. f6 {[%emt 0:00:30]} Ng6+ {[%emt 0:00:30]} 52. Kf5 {[%emt 0:00:30]} Nh4+ {[%emt 0:00:30]} 53. Ke6 {[%emt 0:00:30]} Kd4 {[%emt 0:00:30]} 54. f7 {[%emt 0:00:30]} Ng6 {[%emt 0:00:30]} 55. Kf6 {[%emt 0:00:30]} Nf8 {[%emt 0:00:30]} 56. g6 {[%emt 0:00:30]} 1-0

[Event "TUR-ch Veterans 2019"]
[Site "Belek"]
[Date "2019.01.21"]
[Round "2.14"]
[White "Suzan, Mehmet"]
[Black "Cicek, Cemil"]
[Result "0-1"]
[ECO "D37"]
[WhiteElo "1501"]
[BlackElo "1999"]
[Annotator "NA"]
[PlyCount "126"]
[EventDate "2019.01.20"]
[EventType "swiss"]
[EventCountry "TUR"]
[SourceTitle "playchess.com"]
[Source "ChessBase"]
[SourceQuality "1"]
[TimeControl "5400+30"]

1. d4 {[%emt 0:07:30]} d5 {[%emt 0:06:30]} 2. Nf3 {[%emt 0:00:30]} Nf6 {[%emt 0:00:30]} 3. c4 {[%emt 0:00:30]} e6 {[%emt 0:00:30]} 4. Nc3 {[%emt 0:00:30]} Be7 {[%emt 0:00:30]} 5. h3 {[%emt 0:00:30]} c6 {[%emt 0:00:30] D37: Queen's Gambit Declined: 5 Bf4} (5... O-O 6. Bg5 Ne4 7. Bxe7 Qxe7 8. cxd5 Nxc3 9. bxc3 exd5 10. e3 Bf5 11. Qb3 c6 12. Be2 Qc7 13. O-O {1-0 (33) Bozic,M (2412)-Marcetic,N (2389) Kraljevo 2014}) 6. Bg5 {[%emt 0:00:30]} dxc4 {[%emt 0:00:30]} 7. a4 {[%emt 0:00:30]} Bd7 $146 {[%emt 0:00:30]} ({Predecessor:} 7... Nd5 8. Bxe7 Qxe7 9. e4 Nxc3 10. bxc3 b5 11. Be2 O-O 12. O-O Nd7 13. Re1 Nf6 {0-1 (46) Poruban,E-Petras,K (1953) Slovakia 2005}) 8. e4 {[%emt 0:00:30]} b5 {[%emt 0:00:30]} 9. e5 {[%emt 0:00:30]} Nd5 {[%emt 0:00:30]} 10. Bxe7 {[%emt 0:00:30]} Qxe7 {[%emt 0:00:30]} 11. Ne4 {[%emt 0:00:30]} Qb4+ {[%emt 0:00:30]} 12. Qd2 {[%emt 0:00:30]} Qxd2+ {[%emt 0:00:30]} 13. Nfxd2 {[%emt 0:00:30]} Na6 {[%emt 0:00:30]} 14. Nd6+ {[%emt 0:00:30]} Ke7 {[%emt 0:00:30]} 15. axb5 {[%emt 0:00:30]} Nab4 {[%emt 0:00:30]} 16. Rc1 {[%emt 0:00:30]} cxb5 {[%emt 0:00:30]} 17. Be2 {[%emt 0:00:30]} f6 {[%emt 0:00:30]} 18. O-O {[%emt 0:00:30]} Rhf8 {[%emt 0:00:30]} 19. N2e4 {[%emt 0:04:30]} Nc6 {[%emt 0:01:30]} 20. exf6+ {[%emt 0:00:30]} gxf6 {[%emt 0:00:30]} 21. Nxb5 {[%emt 0:00:30]} a6 {[%emt 0:01:30]} 22. Na3 {[%emt 0:03:30]} Nxd4 {[%emt 0:05:30]} 23. Bxc4 {[%emt 0:01:30]} Bb5 {[%emt 0:02:30]} 24. Nxb5 {[%emt 0:05:30]} axb5 {[%emt 0:00:30]} 25. Bxd5 {[%emt 0:01:30]} exd5 {[%emt 0:01:30]} 26. Ng3 {[%emt 0:00:30]} Ne6 {[%emt 0:03:30]} 27. Nf5+ {[%emt 0:00:30]} Kf7 {[%emt 0:00:30]} 28. Nd6+ {[%emt 0:04:30]} Kg6 {[%emt 0:00:30]} 29. Nxb5 {[%emt 0:00:30]} Rab8 {[%emt 0:00:30]} 30. Nc3 {[%emt 0:00:30]} d4 {[%emt 0:00:30]} 31. Nd1 {[%emt 0:03:30]} Rfc8 {[%emt 0:00:30]} 32. Rxc8 {[%emt 0:01:30]} Rxc8 {[%emt 0:00:30]} 33. f3 {[%emt 0:01:30]} Rc2 {[%emt 0:01:30]} 34. b3 {[%emt 0:01:30]} Nf4 {[%emt 0:00:30]} 35. Rf2 {[%emt 0:03:30]} d3 {[%emt 0:02:30]} 36. Ne3 {[%emt 0:04:30]} Ne2+ {[%emt 0:00:30]} 37. Kh2 {[%emt 0:00:30]} Rb2 {[%emt 0:00:00]} 38. Rf1 {[%emt 0:02:30]} Rxb3 {[%emt 0:04:00]} 39. Rd1 {[%emt 0:01:30]} Kg5 {[%emt 0:00:30]} 40. Rd2 {[%emt 0:04:30]} (40. g3 $11) 40... Kf4 {[%emt 0:01:30]} 41. Nd5+ {[%emt 0:00:30]} Ke5 {[%emt 0:00:00]} 42. Ne3 {[%emt 0:00:30]} Kd4 {[%emt 0:01:00]} 43. Nd1 {[%emt 0:01:30]} f5 {[%emt 0:00:30]} 44. g3 {[%emt 0:00:30]} h5 {[%emt 0:00:30]} 45. Kg2 {[%emt 0:00:30]} Nc3 {[%emt 0:01:30]} 46. Nf2 {[%emt 0:02:30]} Nd5 {[%emt 0:00:30]} 47. g4 {[%emt 0:01:30]} h4 $2 {[%emt 0:03:30]} (47... Ne3+ 48. Kg3 Nf1+ 49. Kf4 Nxd2 50. gxh5 Nc4 51. Nxd3 Rxd3 52. h4 Ne5 53. Kg5 Rxf3 54. Kf6 Rg3 55. h6 f4 56. h7 Ng6 57. h5 Nh8 58. Kf5 Ke3 59. Ke5 f3 60. Kd6 f2 61. Kc5 f1=Q 62. Kd5 Qa6 63. Kc5 Rg5+ 64. Kb4 Qb6+ 65. Kc4 Rc5#) 48. gxf5 {[%emt 0:06:30]} Ne3+ {[%emt 0:01:30]} 49. Kh2 {[%emt 0:00:00]} Nxf5 {[%emt 0:00:30]} 50. f4 {[%emt 0:01:00]} Ke3 {[%emt 0:00:30]} 51. Rxd3+ {[%emt 0:01:30]} Rxd3 {[%emt 0:00:30]} 52. Nxd3 {[%emt 0:01:30]} Kxd3 {[%emt 0:00:30]} 53. Kg2 {[%emt 0:00:00]} Ke3 {[%emt 0:00:00]} 54. Kh2 {[%emt 0:00:00]} Kxf4 {[%emt 0:00:00]} 55. Kg2 {[%emt 0:00:30]} Ke3 {[%emt 0:01:30]} 56. Kg1 {[%emt 0:00:00]} Kf3 {[%emt 0:00:00]} 57. Kh2 {[%emt 0:00:00]} Kf2 {[%emt 0:00:00]} 58. Kh1 {[%emt 0:00:30]} Kg3 {[%emt 0:00:00]} 59. Kg1 {[%emt 0:00:00]} Kxh3 {[%emt 0:00:00]} 60. Kh1 {[%emt 0:00:00]} Kg3 {[%emt 0:00:30]} 61. Kg1 {[%emt 0:00:00]} h3 {[%emt 0:00:00]} 62. Kh1 {[%emt 0:00:00]} Nd6 {[%emt 0:01:00]} 63. Kg1 {[%emt 0:00:30]} Ne4 {[%emt 0:00:00]} 0-1